{"text_format":"1","workbook":"xlsx","n_sheets":14,"sheets":["Cover","Info","Results","E01","E02","E03","E04","E05","E06","E07","E08","E09","E10","About"],"not_rendered":{"charts":11,"images":35,"macros":1,"external_links":0,"defined_names":15,"comments":0,"pivot_tables":0},"unopened":[],"bounds":{"document_bytes":16777216,"sheet_cells":100000,"rows_first":2000,"rows_last":500,"rows_between":2000,"halvings":0,"cell_chars":16384,"cell_head_chars":4096},"cells_cut":0,"cells_raw":0,"read":"whole","date_system":"1900"}

{"sheet":"Cover","index":0,"n_rows":0,"n_cols":0,"rows_kept":0,"cut":false,"hidden":false,"merged":[]}

{"sheet":"Info","index":1,"n_rows":39,"n_cols":4,"rows_kept":39,"cut":false,"hidden":false,"merged":[[0,0,0,16383],[38,1,38,3],[39,1,39,3],[2,1,2,2],[3,1,3,2],[4,1,4,2],[5,1,5,2],[6,1,6,2],[37,1,37,3],[31,1,31,2],[32,1,32,2],[33,1,33,2],[34,1,34,2],[35,1,35,2]]}
[]
[]
[null,"Cette évaluation",null,"Réponse"]
[null,"Nom de la ville:"]
[null,"Type de ville (municipalité, zones métropolitaines, etc.):"]
[null,"Pays:"]
[null,"Date d'évaluation:"]
[]
[null,"Profil de la ville (Obligatoire)","Réponse","La date source"]
[null,"Titre du plus haut niveau d’autorité:"]
[null,"Population totale de la ville:"]
[null,"Superficie de la ville par kilomètre carré:"]
[null,"Densité de la population (par kilomètre carré):"]
[null,"Population jeune (15-24) (%):"]
[null,"Population âgée (65+) (%):"]
[null,"Genre/Sexe (ménages dirigés par des femmes):"]
[null,"Taux d’alphabétisation (% de la population alphabétisé):"]
[null,"Taux de pauvreté (% de la population non pauvre):"]
[null,"Revenu moyen du ménage (USD):"]
[null,"Résidents qui ne sont pas citoyens (%):"]
[null,"Risque de catastrophe probablement connu:"]
[null,"La catastrophe la plus grave (connue):"]
[]
[null,"Profil de la ville (Facultatif)","Réponse","La date source"]
[null,"Nombre total de ménages:"]
[null,"Personne par unité:"]
[null,"Coût de la vie (USD):"]
[null,"PIB du pays par habitant (USD):"]
[null,"Coefficient de Gini:"]
[null,"Produit de la ville par habitant (USD):"]
[]
[null,"L’équipe du gouvernement local pour la réduction des risques de catastrophe et de la résilience",null,"Réponse"]
[null,"Nom de la personne qui dirige / coordonne l'achèvement de l'évaluation du tableau de bord:"]
[null,"Organisation:"]
[null,"Details du contact:"]
[null,"Volonté de partager les résultats ou être utilisé comme exemple / étude de cas par UNDRR et partenaires:"]
[]
[null,"Information sur les parties prenantes"]
[null,"Veuillez énumérer ci-dessous toutes les parties prenantes qui ont soutenu cette évaluation."]

{"sheet":"Results","index":2,"n_rows":152,"n_cols":13,"rows_kept":152,"cut":false,"hidden":false,"merged":[[71,2,71,5],[72,2,72,5],[74,2,74,5],[94,3,94,5],[102,3,102,6],[97,2,97,5],[98,2,98,5],[79,2,79,5],[80,2,80,5],[81,2,81,5],[34,2,34,5],[89,2,89,5],[90,2,90,5],[91,2,91,5],[41,2,41,5],[42,2,42,5],[43,2,43,5],[52,2,52,5],[59,2,59,5],[65,2,65,5],[57,3,57,6],[39,3,39,6],[63,3,63,6],[69,3,69,6],[77,3,77,6],[73,2,73,5],[113,1,113,3],[96,2,96,5],[104,2,104,5],[105,2,105,5],[99,2,99,5],[111,1,111,2]]}
[]
[]
[]
[]
[]
[]
[]
[]
[]
[]
[]
[]
[]
[]
[]
[]
[]
[]
[]
[]
[]
[]
[]
[]
[]
[]
[]
[]
[]
[]
[]
[]
[null,"Essentiels 01: ",null,{"$f":"D118","v":"S’organiser pour la Résilience - Intégration de la santé publique et de la gouvernance"}]
[]
[null,{"$f":"C130","v":"A1.1"},{"$f":"E130","v":"Le secteur de la santé fait partie de la gouvernance multisectorielle de la gestion des risques de catastrophe"},null,null,null,{"$f":"F130","v":0}]
[]
[]
[]
[]
[null,"Essentiels 02: ",null,{"$f":"D119","v":"Identifier, Comprendre et Utiliser des Scénarios des Risques Présents et Futurs - Intégration de la santé publique et des scénarios de catastrophe"}]
[]
[null,{"$f":"C131","v":"A2.1"},{"$f":"E131","v":"Inclusion d'une gamme d'urgences et de catastrophes (par exemple, épidémies / pandémies, famine, pénuries d'eau, etc.) en tant que scénario de catastrophe à part entière"},null,null,null,{"$f":"F131","v":0}]
[null,{"$f":"C132","v":"A2.2"},{"$f":"E132","v":"Inclusion des impacts prévisibles sur la santé publique d'autres scénarios de risques de catastrophe (par exemple, inondation, épisodes de chaleur, tremblement de terre)"},null,null,null,{"$f":"F132","v":0}]
[null,{"$f":"C133","v":"A2.3"},{"$f":"E133","v":"Inclusion dans la planification, en cas de catastrophe, de problèmes de santé chroniques préexistants, y compris les maladies non transmissibles"},null,null,null,{"$f":"F133","v":0}]
[]
[]
[]
[]
[]
[]
[null,"Essentiels 03:",null,{"$f":"D120","v":"Renforcer la Capacité Financière en matière de Résilience - Intégration de la santé publique et des finances"}]
[]
[null,{"$f":"C134","v":"A3.1"},{"$f":"E134","v":"Financement des aspects de la résilience en matière de santé publique"},null,null,null,{"$f":"F134","v":0}]
[]
[]
[]
[]
[null,"Essentiels 04:",null,{"$f":"D121","v":"Poursuivre le Développement Urbain Résilient - Intégration de la santé publique et de l'utilisation des terres/codes du bâtiment"}]
[]
[null,{"$f":"C135","v":"A4.1"},{"$f":"E135","v":"Conformité des principaux établissements de santé au zonage des terrains résilients et aux codes du bâtiment"},null,null,null,{"$f":"F135","v":0}]
[]
[]
[]
[null,"Essentiels 05:",null,{"$f":"D122","v":"Sauvegarder des Zones Tampons Naturelles en vue de Renforcer les Fonctions Protectives Offertes par les Ecosystèmes Naturels - Gestion des services écosystémiques qui affectent la santé publique"}]
[]
[null,{"$f":"C136","v":"A5.1"},{"$f":"E136","v":"Préservation et gestion des services écosystémiques qui fournissent des avantages pour la santé publique"},null,null,null,{"$f":"F136","v":0}]
[]
[]
[]
[null,"Essentiels 06:",null,{"$f":"D123","v":"Renforcer la Capacité Institutionnelle pour la Résilience - Intégration de la santé publique et des capacités institutionnelles"}]
[]
[null,{"$f":"C137","v":"A6.1"},{"$f":"E137","v":"Disponibilité de personnels de santé publique possédant les compétences et aptitudes pertinentes pour la résilience aux catastrophes"},null,null,null,{"$f":"F137","v":0}]
[null,{"$f":"C138","v":"A6.2"},{"$f":"E138","v":"Partage des données du système de santé publique avec d'autres parties prenantes"},null,null,null,{"$f":"F138","v":0}]
[null,{"$f":"C139","v":"A6.2.1"},{"$f":"E139","v":"Partage d'autres données avec les parties prenantes du système de santé publique"},null,null,null,{"$f":"F139","v":0}]
[null,{"$f":"C140","v":"A6.2.2"},{"$f":"E140","v":"Protection et accès aux records sanitaires individuels"},null,null,null,{"$f":"F140","v":0}]
[]
[]
[null,"Essentiels 07: ",null,{"$f":"D124","v":"Comprendre et Renforcer la Capacité Sociétale pour la Résilience - Intégration de la santé publique et des capacités sociétales"}]
[]
[null,{"$f":"C141","v":"A7.1"},{"$f":"E141","v":"Efficacité du système de santé publique dans l'engagement communautaire dans le contexte de la gestion des risques de catastrophe"},null,null,null,{"$f":"F141","v":0}]
[null,{"$f":"C142","v":"A7.1.2"},{"$f":"E142","v":"Accès et confiance de la communauté aux informations de santé publique"},null,null,null,{"$f":"F142","v":0}]
[null,{"$f":"C143","v":"A7.2"},{"$f":"E143","v":"Capacité de la communauté à «revenir à la normalité» - santé mentale"},null,null,null,{"$f":"F143","v":0}]
[]
[]
[]
[]
[]
[null,"Essential 08:",null,{"$f":"D125","v":"Accroître la Résilience d’Infrastructure - Intégration de la santé publique et de la résilience d’infrastructure"}]
[]
[null,{"$f":"C144","v":"A8.1"},{"$f":"E144","v":"Renforcement de la sécurité et de la fonctionnalité structurelles et non structurelles des éléments d'infrastructure de santé publique ne sont pas pris en compte dans le point Essentiel 8"},null,null,null,{"$f":"F144","v":0}]
[null,{"$f":"C145","v":"A8.2"},{"$f":"E145","v":"Augmentation de la capacité des infrastructures de santé publique, si elle n'est pas prise en compte dans le point Essentiel 8"},null,null,null,{"$f":"F145","v":0}]
[null,{"$f":"C146","v":"A8.3"},{"$f":"E146","v":"Continuité des soins pour les personnes déjà malades, si elles ne sont pas prises en compte dans le point Essentiel 8."},null,null,null,{"$f":"F146","v":0}]
[]
[]
[null,"Essentiels 09:",null,{"$f":"D126","v":"Assurer l’Efficacité de Réaction en cas de Catastrophe - Intégration de la santé publique et de la réponse aux catastrophes"}]
[]
[null,{"$f":"C147","v":"A9.1"},{"$f":"E147","v":"Systèmes d'alerte précoce pour les urgences liées à la santé"},null,null,null,{"$f":"F147","v":0}]
[null,{"$f":"C148","v":"A9.2"},{"$f":"E148","v":"Intégration de la santé publique avec la gestion des urgences"},null,null,null,{"$f":"F148","v":0}]
[null,{"$f":"C149","v":"A9.3"},{"$f":"E149","v":"Prise en compte des populations à haut risque ou de celles vivant à domicile avec des conditions préexistantes"},null,null,null,{"$f":"F149","v":0}]
[null,{"$f":"C150","v":"A9.4"},{"$f":"E150","v":"Capacité à fournir des fournitures de santé publique aux personnes dans le besoin. "},null,null,null,{"$f":"F150","v":0}]
[]
[]
[null,"Essentiels 10: ",null,{"$f":"D127","v":"Diligenter le Redressement et Reconstruire en Mieux - Intégration de la santé publique et du Redressement / de reconstruire en mieux"}]
[]
[null,{"$f":"C151","v":"A10.1"},{"$f":"E151","v":"Atténuer les impacts à long terme sur la santé publique et le bien-être"},null,null,null,{"$f":"F151","v":0}]
[null,{"$f":"C152","v":"A10.2"},{"$f":"E152","v":"Apprendre et s'améliorer"},null,null,null,{"$f":"F152","v":0}]
[]
[]
[]
[]
[]
[null,{"$f":"TODAY()","v":"2020-06-19"},null,null,null,null,null,{"$f":"Info!$B$4","v":"Nom de la ville:"},{"$f":"Info!$D$4","v":0},null,{"$f":"Info!$B$6","v":"Pays:"},{"$f":"Info!$D$6","v":0}]
[]
[]
[]
[]
[null,null,"Label","Name",null,"Essential","TotalScore","MaxScore","Label"]
[null,null,"S1","S’organiser pour la Résilience - Intégration de la santé publique et de la gouvernance",null,"E1",{"$f":"SUMIFS($F$130:$F$189,$B$130:$B$189,F118)","v":0},{"$f":"COUNTIFS($B$130:$B$152,F118)*5","v":5},"01",null,{"$f":"SUM(G118:G127)","v":0},{"$f":"K118/K119","v":0},{"$f":"CONCATENATE(\"Le score global pour cette évaluation est \",SUM(G118:G127),\" / \",SUM(H118:H127))","v":"Le score global pour cette évaluation est 0 / 115"}]
[null,null,"S2","Identifier, Comprendre et Utiliser des Scénarios des Risques Présents et Futurs - Intégration de la santé publique et des scénarios de catastrophe",null,"E2",{"$f":"SUMIFS($F$130:$F$1010,$B$130:$B$1010,F119)","v":0},15,"02",null,{"$f":"SUM(H118:H127)","v":115},{"$f":"1-L118","v":1}]
[null,null,"S3","Renforcer la Capacité Financière en matière de Résilience - Intégration de la santé publique et des finances",null,"E3",0,5,"03"]
[null,null,"S4","Poursuivre le Développement Urbain Résilient - Intégration de la santé publique et de l'utilisation des terres/codes du bâtiment",null,"E4",0,5,"04"]
[null,null,"S5","Sauvegarder des Zones Tampons Naturelles en vue de Renforcer les Fonctions Protectives Offertes par les Ecosystèmes Naturels - Gestion des services écosystémiques qui affectent la santé publique",null,"E5",0,5,"05"]
[null,null,"S6","Renforcer la Capacité Institutionnelle pour la Résilience - Intégration de la santé publique et des capacités institutionnelles",null,"E6",0,20,"06"]
[null,null,"S7","Comprendre et Renforcer la Capacité Sociétale pour la Résilience - Intégration de la santé publique et des capacités sociétales",null,"E7",0,15,"07"]
[null,null,"S8","Accroître la Résilience d’Infrastructure - Intégration de la santé publique et de la résilience d’infrastructure",null,"E8",0,15,"08"]
[null,null,"S9","Assurer l’Efficacité de Réaction en cas de Catastrophe - Intégration de la santé publique et de la réponse aux catastrophes",null,"E9",0,20,"09"]
[null,null,"S10","Diligenter le Redressement et Reconstruire en Mieux - Intégration de la santé publique et du Redressement / de reconstruire en mieux",null,"E10",0,10,"10"]
[]
[null,"Section","Ref",null,"Question","SelectedScore","ThisScore"]
[null,"E1",{"$f":"'E01'!$G$5","v":"A1.1"},null,{"$f":"'E01'!I5","v":"Le secteur de la santé fait partie de la gouvernance multisectorielle de la gestion des risques de catastrophe"},{"$f":"IF(G130=\"\",0,IF(G130=0,0,6-G130))","v":0},{"$f":"OFFSET('E01'!$E$1,MATCH(C130,'E01'!G:G,0)+3,0)","v":0}]
[null,"E2",{"$f":"'E02'!$G$5","v":"A2.1"},null,{"$f":"'E02'!I5","v":"Inclusion d'une gamme d'urgences et de catastrophes (par exemple, épidémies / pandémies, famine, pénuries d'eau, etc.) en tant que scénario de catastrophe à part entière"},{"$f":"IF(G131=\"\",0,IF(G131=0,0,6-G131))","v":0},{"$f":"OFFSET('E02'!$E$1,MATCH(C131,'E02'!G:G,0)+3,0)","v":0}]
[null,"E2",{"$f":"'E02'!$G$18","v":"A2.2"},null,{"$f":"'E02'!$I$18","v":"Inclusion des impacts prévisibles sur la santé publique d'autres scénarios de risques de catastrophe (par exemple, inondation, épisodes de chaleur, tremblement de terre)"},0,{"$f":"OFFSET('E02'!$E$1,MATCH(C132,'E02'!G:G,0)+3,0)","v":0}]
[null,"E2",{"$f":"'E02'!$G$31","v":"A2.3"},null,{"$f":"'E02'!$I$31","v":"Inclusion dans la planification, en cas de catastrophe, de problèmes de santé chroniques préexistants, y compris les maladies non transmissibles"},0,{"$f":"OFFSET('E02'!$E$1,MATCH(C133,'E02'!G:G,0)+3,0)","v":0}]
[null,"E3",{"$f":"'E03'!$G$5","v":"A3.1"},null,{"$f":"'E03'!$I$5","v":"Financement des aspects de la résilience en matière de santé publique"},0,{"$f":"OFFSET('E03'!$E$1,MATCH(C134,'E03'!G:G,0)+3,0)","v":0}]
[null,"E4",{"$f":"'E04'!$G$5","v":"A4.1"},null,{"$f":"'E04'!$I$5","v":"Conformité des principaux établissements de santé au zonage des terrains résilients et aux codes du bâtiment"},0,{"$f":"OFFSET('E04'!$E$1,MATCH(C135,'E04'!G:G,0)+3,0)","v":0}]
[null,"E5",{"$f":"'E05'!$G$5","v":"A5.1"},null,{"$f":"'E05'!$I$5","v":"Préservation et gestion des services écosystémiques qui fournissent des avantages pour la santé publique"},0,{"$f":"OFFSET('E05'!$E$1,MATCH(C136,'E05'!G:G,0)+3,0)","v":0}]
[null,"E6",{"$f":"'E06'!$G$5","v":"A6.1"},null,{"$f":"'E06'!$I$5","v":"Disponibilité de personnels de santé publique possédant les compétences et aptitudes pertinentes pour la résilience aux catastrophes"},0,{"$f":"OFFSET('E06'!$E$1,MATCH(C137,'E06'!G:G,0)+3,0)","v":0}]
[null,"E6",{"$f":"'E06'!$G$18","v":"A6.2"},null,{"$f":"'E06'!$I$18","v":"Partage des données du système de santé publique avec d'autres parties prenantes"},0,{"$f":"OFFSET('E06'!$E$1,MATCH(C138,'E06'!G:G,0)+3,0)","v":0}]
[null,"E6",{"$f":"'E06'!$G$31","v":"A6.2.1"},null,{"$f":"'E06'!$I$31","v":"Partage d'autres données avec les parties prenantes du système de santé publique"},0,{"$f":"OFFSET('E06'!$E$1,MATCH(C139,'E06'!G:G,0)+3,0)","v":0}]
[null,"E6",{"$f":"'E06'!$G$44","v":"A6.2.2"},null,{"$f":"'E06'!$I$44","v":"Protection et accès aux records sanitaires individuels"},0,{"$f":"OFFSET('E06'!$E$1,MATCH(C140,'E06'!G:G,0)+3,0)","v":0}]
[null,"E7",{"$f":"'E07'!$G$5","v":"A7.1"},null,{"$f":"'E07'!$I$5","v":"Efficacité du système de santé publique dans l'engagement communautaire dans le contexte de la gestion des risques de catastrophe"},0,{"$f":"OFFSET('E07'!$E$1,MATCH(C141,'E07'!G:G,0)+3,0)","v":0}]
[null,"E7",{"$f":"'E07'!$G$18","v":"A7.1.2"},null,{"$f":"'E07'!$I$18","v":"Accès et confiance de la communauté aux informations de santé publique"},0,{"$f":"OFFSET('E07'!$E$1,MATCH(C142,'E07'!G:G,0)+3,0)","v":0}]
[null,"E7",{"$f":"'E07'!$G$31","v":"A7.2"},null,{"$f":"'E07'!$I$31","v":"Capacité de la communauté à «revenir à la normalité» - santé mentale"},0,{"$f":"OFFSET('E07'!$E$1,MATCH(C143,'E07'!G:G,0)+3,0)","v":0}]
[null,"E8",{"$f":"'E08'!$G$5","v":"A8.1"},null,{"$f":"'E08'!$I$5","v":"Renforcement de la sécurité et de la fonctionnalité structurelles et non structurelles des éléments d'infrastructure de santé publique ne sont pas pris en compte dans le point Essentiel 8"},0,{"$f":"OFFSET('E08'!$E$1,MATCH(C144,'E08'!G:G,0)+3,0)","v":0}]
[null,"E8",{"$f":"'E08'!$G$18","v":"A8.2"},null,{"$f":"'E08'!$I$18","v":"Augmentation de la capacité des infrastructures de santé publique, si elle n'est pas prise en compte dans le point Essentiel 8"},{"$f":"IF(G145=\"\",0,IF(G145=0,0,6-G145))","v":0},{"$f":"OFFSET('E08'!$E$1,MATCH(C145,'E08'!G:G,0)+3,0)","v":0}]
[null,"E8",{"$f":"'E08'!$G$31","v":"A8.3"},null,{"$f":"'E08'!$I$31","v":"Continuité des soins pour les personnes déjà malades, si elles ne sont pas prises en compte dans le point Essentiel 8."},0,{"$f":"OFFSET('E08'!$E$1,MATCH(C146,'E08'!G:G,0)+3,0)","v":0}]
[null,"E9",{"$f":"'E09'!$G$5","v":"A9.1"},null,{"$f":"'E09'!$I$5","v":"Systèmes d'alerte précoce pour les urgences liées à la santé"},0,{"$f":"OFFSET('E09'!$E$1,MATCH(C147,'E09'!G:G,0)+3,0)","v":0}]
[null,"E9",{"$f":"'E09'!$G$18","v":"A9.2"},null,{"$f":"'E09'!$I$18","v":"Intégration de la santé publique avec la gestion des urgences"},0,{"$f":"OFFSET('E09'!$E$1,MATCH(C148,'E09'!G:G,0)+3,0)","v":0}]
[null,"E9",{"$f":"'E09'!$G$31","v":"A9.3"},null,{"$f":"'E09'!$I$31","v":"Prise en compte des populations à haut risque ou de celles vivant à domicile avec des conditions préexistantes"},0,{"$f":"OFFSET('E09'!$E$1,MATCH(C149,'E09'!G:G,0)+3,0)","v":0}]
[null,"E9",{"$f":"'E09'!$G$44","v":"A9.4"},null,{"$f":"'E09'!$I$44","v":"Capacité à fournir des fournitures de santé publique aux personnes dans le besoin. "},0,{"$f":"OFFSET('E09'!$E$1,MATCH(C150,'E09'!G:G,0)+3,0)","v":0}]
[null,"E10",{"$f":"'E10'!$G$5","v":"A10.1"},null,{"$f":"'E10'!$I$5","v":"Atténuer les impacts à long terme sur la santé publique et le bien-être"},0,{"$f":"OFFSET('E10'!$E$1,MATCH(C151,'E10'!G:G,0)+3,0)","v":0}]
[null,"E10",{"$f":"'E10'!$G$18","v":"A10.2"},null,{"$f":"'E10'!$I$18","v":"Apprendre et s'améliorer"},0,{"$f":"OFFSET('E10'!$E$1,MATCH(C152,'E10'!G:G,0)+3,0)","v":0}]

{"sheet":"E01","index":3,"n_rows":15,"n_cols":9,"rows_kept":15,"cut":false,"hidden":false,"merged":[[7,2,7,3],[8,2,13,3],[5,2,5,3],[6,2,6,3]]}
["a"]
[]
[null,"A.1 Intégration de la santé publique et de la gouvernance (Point Essential 1)",null,null,null,null,"A.1",null,"Intégration de la santé publique et de la gouvernance (Point Essential 1)"]
[]
[null,"A.1.1 Le secteur de la santé fait partie de la gouvernance multisectorielle de la gestion des risques de catastrophe",null,null,null,null,"A1.1",null,"Le secteur de la santé fait partie de la gouvernance multisectorielle de la gestion des risques de catastrophe"]
[null,"Question","Commentaires"]
[]
[null,"Response","Fournir des moyens de vérification (explication et preuve)"]
[null,null,null,null,null,{"$f":"IF(E9=1,TRUE,FALSE)","v":false}]
[null,null,null,null,null,{"$f":"IF(E9=2,TRUE,FALSE)","v":false}]
[null,null,null,null,null,{"$f":"IF(E9=3,TRUE,FALSE)","v":false}]
[null,null,null,null,null,{"$f":"IF(E9=4,TRUE,FALSE)","v":false}]
[null,null,null,null,null,{"$f":"IF(E9=5,TRUE,FALSE)","v":false}]
[null,null,null,null,null,{"$f":"IF(E9=6,TRUE,FALSE)","v":false}]
[null,"Actions pour atteindre une résilience maximale","Institution responsable ","Période"]

{"sheet":"E02","index":4,"n_rows":41,"n_cols":9,"rows_kept":41,"cut":false,"hidden":false,"merged":[[20,2,20,3],[8,2,13,3],[21,2,26,3],[34,2,39,3],[31,2,31,3],[32,2,32,3],[33,2,33,3],[5,2,5,3],[6,2,6,3],[7,2,7,3],[18,2,18,3],[19,2,19,3]]}
[]
[]
[null,"A.2 Intégration de la santé publique et des scénarios de catastrophe (Point Essentiel 2)",null,null,null,null,"A.2",null,"Intégration de la santé publique et des scénarios de catastrophe (Point Essentiel 2)"]
[]
[null,"A2.1 Inclusion d'une gamme d'urgences et de catastrophes (par exemple, épidémies / pandémies, famine, pénuries d'eau, etc.) en tant que scénario de catastrophe à part entière",null,null,null,null,"A2.1",null,"Inclusion d'une gamme d'urgences et de catastrophes (par exemple, épidémies / pandémies, famine, pénuries d'eau, etc.) en tant que scénario de catastrophe à part entière"]
[null,"Question","Commentaires"]
[]
[null,"Response","Fournir des moyens de vérification (explication et preuve)"]
[null,null,null,null,null,{"$f":"IF(E9=1,TRUE,FALSE)","v":false}]
[null,null,null,null,null,{"$f":"IF(E9=2,TRUE,FALSE)","v":false}]
[null,null,null,null,null,{"$f":"IF(E9=3,TRUE,FALSE)","v":false}]
[null,null,null,null,null,{"$f":"IF(E9=4,TRUE,FALSE)","v":false}]
[null,null,null,null,null,{"$f":"IF(E9=5,TRUE,FALSE)","v":false}]
[null,null,null,null,null,{"$f":"IF(E9=6,TRUE,FALSE)","v":false}]
[null,"Actions pour atteindre une résilience maximale","Institution responsable ","Période"]
[]
[]
[null,"A2.2 Inclusion des impacts prévisibles sur la santé publique d'autres scénarios de risques de catastrophe (par exemple, inondation, épisodes de chaleur, tremblement de terre)",null,null,null,null,"A2.2",null,"Inclusion des impacts prévisibles sur la santé publique d'autres scénarios de risques de catastrophe (par exemple, inondation, épisodes de chaleur, tremblement de terre)"]
[null,"Question","Commentaires"]
[]
[null,"Response","Fournir des moyens de vérification (explication et preuve)"]
[null,null,null,null,null,{"$f":"IF(E22=1,TRUE,FALSE)","v":false}]
[null,null,null,null,null,{"$f":"IF(E22=2,TRUE,FALSE)","v":false}]
[null,null,null,null,null,{"$f":"IF(E22=3,TRUE,FALSE)","v":false}]
[null,null,null,null,null,{"$f":"IF(E22=4,TRUE,FALSE)","v":false}]
[null,null,null,null,null,{"$f":"IF(E22=5,TRUE,FALSE)","v":false}]
[null,null,null,null,null,{"$f":"IF(E22=6,TRUE,FALSE)","v":false}]
[null,"Actions pour atteindre une résilience maximale","Institution responsable ","Période"]
[]
[]
[null,"A2.3 Inclusion dans la planification, en cas de catastrophe, de problèmes de santé chroniques préexistants, y compris les maladies non transmissibles",null,null,null,null,"A2.3",null,"Inclusion dans la planification, en cas de catastrophe, de problèmes de santé chroniques préexistants, y compris les maladies non transmissibles"]
[null,"Question","Commentaires"]
[]
[null,"Response","Fournir des moyens de vérification (explication et preuve)"]
[null,null,null,null,null,{"$f":"IF(E35=1,TRUE,FALSE)","v":false}]
[null,null,null,null,null,{"$f":"IF(E35=2,TRUE,FALSE)","v":false}]
[null,null,null,null,null,{"$f":"IF(E35=3,TRUE,FALSE)","v":false}]
[null,null,null,null,null,{"$f":"IF(E35=4,TRUE,FALSE)","v":false}]
[null,null,null,null,null,{"$f":"IF(E35=5,TRUE,FALSE)","v":false}]
[null,null,null,null,null,{"$f":"IF(E35=6,TRUE,FALSE)","v":false}]
[null,"Actions pour atteindre une résilience maximale","Institution responsable ","Période"]

{"sheet":"E03","index":5,"n_rows":15,"n_cols":9,"rows_kept":15,"cut":false,"hidden":false,"merged":[[4,1,4,3],[5,2,5,3],[6,2,6,3],[7,2,7,3],[8,2,13,3]]}
[]
[]
[null,"A3 Intégration de la santé publique et des finances (Point Essentiel 3)",null,null,null,null,"A3",null,"Intégration de la santé publique et des finances (Point Essentiel 3)"]
[]
[null,"A3.1 Financement des aspects de la résilience en matière de santé publique",null,null,null,null,"A3.1",null,"Financement des aspects de la résilience en matière de santé publique"]
[null,"Question","Commentaires"]
[]
[null,"Response","Fournir des moyens de vérification (explication et preuve)"]
[null,null,null,null,null,{"$f":"IF(E9=1,TRUE,FALSE)","v":false}]
[null,null,null,null,null,{"$f":"IF(E9=2,TRUE,FALSE)","v":false}]
[null,null,null,null,null,{"$f":"IF(E9=3,TRUE,FALSE)","v":false}]
[null,null,null,null,null,{"$f":"IF(E9=4,TRUE,FALSE)","v":false}]
[null,null,null,null,null,{"$f":"IF(E9=5,TRUE,FALSE)","v":false}]
[null,null,null,null,null,{"$f":"IF(E9=6,TRUE,FALSE)","v":false}]
[null,"Actions pour atteindre une résilience maximale","Institution responsable ","Période"]

{"sheet":"E04","index":6,"n_rows":15,"n_cols":9,"rows_kept":15,"cut":false,"hidden":false,"merged":[[4,1,4,3],[5,2,5,3],[6,2,6,3],[7,2,7,3],[8,2,13,3]]}
[]
[]
[null,"A4 Intégration de la santé publique et de l’utilisation des terres /codes du bâtiment (Point Essentiel 4)",null,null,null,null,"A4",null,"Intégration de la santé publique et de l’utilisation des terres /codes du bâtiment (Point Essentiel 4)"]
[]
[null,"A4.1 Conformité des principaux établissements de santé au zonage des terrains résilients et aux codes du bâtiment",null,null,null,null,"A4.1",null,"Conformité des principaux établissements de santé au zonage des terrains résilients et aux codes du bâtiment"]
[null,"Question","Commentaires"]
[]
[null,"Response","Fournir des moyens de vérification (explication et preuve)"]
[null,null,null,null,null,{"$f":"IF(E9=1,TRUE,FALSE)","v":false}]
[null,null,null,null,null,{"$f":"IF(E9=2,TRUE,FALSE)","v":false}]
[null,null,null,null,null,{"$f":"IF(E9=3,TRUE,FALSE)","v":false}]
[null,null,null,null,null,{"$f":"IF(E9=4,TRUE,FALSE)","v":false}]
[null,null,null,null,null,{"$f":"IF(E9=5,TRUE,FALSE)","v":false}]
[null,null,null,null,null,{"$f":"IF(E9=6,TRUE,FALSE)","v":false}]
[null,"Actions pour atteindre une résilience maximale","Institution responsable ","Période"]

{"sheet":"E05","index":7,"n_rows":15,"n_cols":9,"rows_kept":15,"cut":false,"hidden":false,"merged":[[4,1,4,3],[5,2,5,3],[6,2,6,3],[7,2,7,3],[8,2,13,3]]}
[]
[]
[null,"A5 Gestion des services écosystémiques qui affectent la santé publique (Point Essentiel 5)",null,null,null,null,"A5",null,"Gestion des services écosystémiques qui affectent la santé publique (Point Essentiel 5)"]
[]
[null,"A5.1 Préservation et gestion des services écosystémiques qui fournissent des avantages pour la santé publique",null,null,null,null,"A5.1",null,"Préservation et gestion des services écosystémiques qui fournissent des avantages pour la santé publique"]
[null,"Question","Commentaires"]
[]
[null,"Response","Fournir des moyens de vérification (explication et preuve)"]
[null,null,null,null,null,{"$f":"IF(E9=1,TRUE,FALSE)","v":false}]
[null,null,null,null,null,{"$f":"IF(E9=2,TRUE,FALSE)","v":false}]
[null,null,null,null,null,{"$f":"IF(E9=3,TRUE,FALSE)","v":false}]
[null,null,null,null,null,{"$f":"IF(E9=4,TRUE,FALSE)","v":false}]
[null,null,null,null,null,{"$f":"IF(E9=5,TRUE,FALSE)","v":false}]
[null,null,null,null,null,{"$f":"IF(E9=6,TRUE,FALSE)","v":false}]
[null,"Actions pour atteindre une résilience maximale","Institution responsable ","Période"]

{"sheet":"E06","index":8,"n_rows":54,"n_cols":9,"rows_kept":54,"cut":false,"hidden":false,"merged":[[18,2,18,3],[47,2,52,3],[34,2,39,3],[21,2,26,3],[19,2,19,3],[20,2,20,3],[30,1,30,3],[31,2,31,3],[32,2,32,3],[33,2,33,3],[43,1,43,3],[44,2,44,3],[45,2,45,3],[46,2,46,3],[4,1,4,3],[5,2,5,3],[6,2,6,3],[7,2,7,3],[17,1,17,3],[8,2,13,3]]}
[]
[]
[null,"A6 Intégration de la santé publique et des capacités institutionnelles (Point Essentiel 6)",null,null,null,null,"A6",null,"Intégration de la santé publique et des capacités institutionnelles (Point Essentiel 6)"]
[]
[null,"A6.1 Disponibilité de personnels de santé publique possédant les compétences et aptitudes pertinentes pour la résilience aux catastrophes",null,null,null,null,"A6.1",null,"Disponibilité de personnels de santé publique possédant les compétences et aptitudes pertinentes pour la résilience aux catastrophes"]
[null,"Question","Commentaires"]
[]
[null,"Response","Fournir des moyens de vérification (explication et preuve)"]
[null,null,null,null,null,{"$f":"IF(E9=1,TRUE,FALSE)","v":false}]
[null,null,null,null,null,{"$f":"IF(E9=2,TRUE,FALSE)","v":false}]
[null,null,null,null,null,{"$f":"IF(E9=3,TRUE,FALSE)","v":false}]
[null,null,null,null,null,{"$f":"IF(E9=4,TRUE,FALSE)","v":false}]
[null,null,null,null,null,{"$f":"IF(E9=5,TRUE,FALSE)","v":false}]
[null,null,null,null,null,{"$f":"IF(E9=6,TRUE,FALSE)","v":false}]
[null,"Actions pour atteindre une résilience maximale","Institution responsable ","Période"]
[]
[]
[null,"A6.2 Partage des données du système de santé publique avec d'autres parties prenantes",null,null,null,null,"A6.2",null,"Partage des données du système de santé publique avec d'autres parties prenantes"]
[null,"Question","Commentaires"]
[]
[null,"Response","Fournir des moyens de vérification (explication et preuve)"]
[null,null,null,null,null,{"$f":"IF(E22=1,TRUE,FALSE)","v":false}]
[null,null,null,null,null,{"$f":"IF(E22=2,TRUE,FALSE)","v":false}]
[null,null,null,null,null,{"$f":"IF(E22=3,TRUE,FALSE)","v":false}]
[null,null,null,null,null,{"$f":"IF(E22=4,TRUE,FALSE)","v":false}]
[null,null,null,null,null,{"$f":"IF(E22=5,TRUE,FALSE)","v":false}]
[null,null,null,null,null,{"$f":"IF(E22=6,TRUE,FALSE)","v":false}]
[null,"Actions pour atteindre une résilience maximale","Institution responsable ","Période"]
[]
[]
[null,"A6.2.1 Partage d'autres données avec les parties prenantes du système de santé publique",null,null,null,null,"A6.2.1",null,"Partage d'autres données avec les parties prenantes du système de santé publique"]
[null,"Question","Commentaires"]
[]
[null,"Response","Fournir des moyens de vérification (explication et preuve)"]
[null,null,null,null,null,{"$f":"IF(E35=1,TRUE,FALSE)","v":false}]
[null,null,null,null,null,{"$f":"IF(E35=2,TRUE,FALSE)","v":false}]
[null,null,null,null,null,{"$f":"IF(E35=3,TRUE,FALSE)","v":false}]
[null,null,null,null,null,{"$f":"IF(E35=4,TRUE,FALSE)","v":false}]
[null,null,null,null,null,{"$f":"IF(E35=5,TRUE,FALSE)","v":false}]
[null,null,null,null,null,{"$f":"IF(E35=6,TRUE,FALSE)","v":false}]
[null,"Actions pour atteindre une résilience maximale","Institution responsable ","Période"]
[]
[]
[null,"A6.2.2 Protection et accès aux records sanitaires individuels",null,null,null,null,"A6.2.2",null,"Protection et accès aux records sanitaires individuels"]
[null,"Question","Commentaires"]
[]
[null,"Response","Fournir des moyens de vérification (explication et preuve)"]
[null,null,null,null,null,{"$f":"IF(E48=1,TRUE,FALSE)","v":false}]
[null,null,null,null,null,{"$f":"IF(E48=2,TRUE,FALSE)","v":false}]
[null,null,null,null,null,{"$f":"IF(E48=3,TRUE,FALSE)","v":false}]
[null,null,null,null,null,{"$f":"IF(E48=4,TRUE,FALSE)","v":false}]
[null,null,null,null,null,{"$f":"IF(E48=5,TRUE,FALSE)","v":false}]
[null,null,null,null,null,{"$f":"IF(E48=6,TRUE,FALSE)","v":false}]
[null,"Actions pour atteindre une résilience maximale","Institution responsable ","Période"]

{"sheet":"E07","index":9,"n_rows":43,"n_cols":9,"rows_kept":43,"cut":false,"hidden":false,"merged":[[18,2,18,3],[8,2,13,3],[21,2,26,3],[34,2,39,3],[19,2,19,3],[20,2,20,3],[30,1,30,3],[31,2,31,3],[32,2,32,3],[33,2,33,3],[4,1,4,3],[5,2,5,3],[6,2,6,3],[7,2,7,3],[17,1,17,3]]}
[]
[]
[null,"A7 Intégration de la santé publique et des capacités sociétales (Point Essentiel 7)",null,null,null,null,"A7",null,"Intégration de la santé publique et des capacités sociétales (Point Essentiel 7)"]
[null,null,null,null,null,null,""]
[null,"A7.1 Efficacité du système de santé publique dans l'engagement communautaire dans le contexte de la gestion des risques de catastrophe",null,null,null,null,"A7.1",null,"Efficacité du système de santé publique dans l'engagement communautaire dans le contexte de la gestion des risques de catastrophe"]
[null,"Question","Commentaires",null,null,null,""]
[null,null,null,null,null,null,""]
[null,"Response","Fournir des moyens de vérification (explication et preuve)",null,null,null,""]
[null,null,null,null,null,{"$f":"IF(E9=1,TRUE,FALSE)","v":false},""]
[null,null,null,null,null,{"$f":"IF(E9=2,TRUE,FALSE)","v":false},""]
[null,null,null,null,null,{"$f":"IF(E9=3,TRUE,FALSE)","v":false},""]
[null,null,null,null,null,{"$f":"IF(E9=4,TRUE,FALSE)","v":false},""]
[null,null,null,null,null,{"$f":"IF(E9=5,TRUE,FALSE)","v":false},""]
[null,null,null,null,null,{"$f":"IF(E9=6,TRUE,FALSE)","v":false},""]
[null,"Actions pour atteindre une résilience maximale","Institution responsable ","Période",null,null,""]
[null,null,null,null,null,null,""]
[null,null,null,null,null,null,""]
[null,"A7.1.2 Accès et confiance de la communauté aux informations de santé publique",null,null,null,null,"A7.1.2",null,"Accès et confiance de la communauté aux informations de santé publique"]
[null,"Question","Commentaires",null,null,null,""]
[null,null,null,null,null,null,""]
[null,"Response","Fournir des moyens de vérification (explication et preuve)",null,null,null,""]
[null,null,null,null,null,{"$f":"IF(E22=1,TRUE,FALSE)","v":false},""]
[null,null,null,null,null,{"$f":"IF(E22=2,TRUE,FALSE)","v":false},""]
[null,null,null,null,null,{"$f":"IF(E22=3,TRUE,FALSE)","v":false},""]
[null,null,null,null,null,{"$f":"IF(E22=4,TRUE,FALSE)","v":false},""]
[null,null,null,null,null,{"$f":"IF(E22=5,TRUE,FALSE)","v":false},""]
[null,null,null,null,null,{"$f":"IF(E22=6,TRUE,FALSE)","v":false},""]
[null,"Actions pour atteindre une résilience maximale","Institution responsable ","Période",null,null,""]
[null,null,null,null,null,null,""]
[null,null,null,null,null,null,""]
[null,"A7.2 Capacité de la communauté à «revenir à la normalité» - santé mentale",null,null,null,null,"A7.2",null,"Capacité de la communauté à «revenir à la normalité» - santé mentale"]
[null,"Question","Commentaires",null,null,null,""]
[null,null,null,null,null,null,""]
[null,"Response","Fournir des moyens de vérification (explication et preuve)",null,null,null,""]
[null,null,null,null,null,{"$f":"IF(E35=1,TRUE,FALSE)","v":false},""]
[null,null,null,null,null,{"$f":"IF(E35=2,TRUE,FALSE)","v":false},""]
[null,null,null,null,null,{"$f":"IF(E35=3,TRUE,FALSE)","v":false},""]
[null,null,null,null,null,{"$f":"IF(E35=4,TRUE,FALSE)","v":false},""]
[null,null,null,null,null,{"$f":"IF(E35=5,TRUE,FALSE)","v":false},""]
[null,null,null,null,null,{"$f":"IF(E35=6,TRUE,FALSE)","v":false},""]
[null,"Actions pour atteindre une résilience maximale","Institution responsable ","Période",null,null,""]
[null,null,null,null,null,null,""]
[null,null,null,null,null,null,""]

{"sheet":"E08","index":10,"n_rows":43,"n_cols":9,"rows_kept":43,"cut":false,"hidden":false,"merged":[[34,2,39,3],[21,2,26,3],[8,2,13,3],[33,2,33,3],[4,1,4,3],[5,2,5,3],[6,2,6,3],[7,2,7,3],[17,1,17,3],[18,2,18,3],[19,2,19,3],[20,2,20,3],[30,1,30,3],[31,2,31,3],[32,2,32,3]]}
[]
[]
[null,"A8 Intégration de la santé publique et de la résilience d’infrastructure (Point Essentiel 8)",null,null,null,null,"A8",null,"Intégration de la santé publique et de la résilience d’infrastructure (Point Essentiel 8)"]
[null,null,null,null,null,null,""]
[null,"A8.1 Renforcement de la sécurité et de la fonctionnalité structurelles et non structurelles des éléments d'infrastructure de santé publique ne sont pas pris en compte dans le point Essentiel 8",null,null,null,null,"A8.1",null,"Renforcement de la sécurité et de la fonctionnalité structurelles et non structurelles des éléments d'infrastructure de santé publique ne sont pas pris en compte dans le point Essentiel 8"]
[null,"Question","Commentaires",null,null,null,""]
[null,null,null,null,null,null,""]
[null,"Response","Fournir des moyens de vérification (explication et preuve)",null,null,null,""]
[null,null,null,null,null,{"$f":"IF(E9=1,TRUE,FALSE)","v":false},""]
[null,null,null,null,null,{"$f":"IF(E9=2,TRUE,FALSE)","v":false},""]
[null,null,null,null,null,{"$f":"IF(E9=3,TRUE,FALSE)","v":false},""]
[null,null,null,null,null,{"$f":"IF(E9=4,TRUE,FALSE)","v":false},""]
[null,null,null,null,null,{"$f":"IF(E9=5,TRUE,FALSE)","v":false},""]
[null,null,null,null,null,{"$f":"IF(E9=6,TRUE,FALSE)","v":false},""]
[null,"Actions pour atteindre une résilience maximale","Institution responsable ","Période",null,null,""]
[null,null,null,null,null,null,""]
[null,null,null,null,null,null,""]
[null,"A8.2 Augmentation de la capacité des infrastructures de santé publique, si elle n'est pas prise en compte dans le point Essentiel 8",null,null,null,null,"A8.2",null,"Augmentation de la capacité des infrastructures de santé publique, si elle n'est pas prise en compte dans le point Essentiel 8"]
[null,"Question","Commentaires",null,null,null,""]
[null,null,null,null,null,null,""]
[null,"Response","Fournir des moyens de vérification (explication et preuve)",null,null,null,""]
[null,null,null,null,null,{"$f":"IF(E22=1,TRUE,FALSE)","v":false},""]
[null,null,null,null,null,{"$f":"IF(E22=2,TRUE,FALSE)","v":false},""]
[null,null,null,null,null,{"$f":"IF(E22=3,TRUE,FALSE)","v":false},""]
[null,null,null,null,null,{"$f":"IF(E22=4,TRUE,FALSE)","v":false},""]
[null,null,null,null,null,{"$f":"IF(E22=5,TRUE,FALSE)","v":false},""]
[null,null,null,null,null,{"$f":"IF(E22=6,TRUE,FALSE)","v":false},""]
[null,"Actions pour atteindre une résilience maximale","Institution responsable ","Période",null,null,""]
[null,null,null,null,null,null,""]
[null,null,null,null,null,null,""]
[null,"A8.3 Continuité des soins pour les personnes déjà malades, si elles ne sont pas prises en compte dans le point Essentiel 8.",null,null,null,null,"A8.3",null,"Continuité des soins pour les personnes déjà malades, si elles ne sont pas prises en compte dans le point Essentiel 8."]
[null,"Question","Commentaires",null,null,null,""]
[null,null,null,null,null,null,""]
[null,"Response","Fournir des moyens de vérification (explication et preuve)",null,null,null,""]
[null,null,null,null,null,{"$f":"IF(E35=1,TRUE,FALSE)","v":false},""]
[null,null,null,null,null,{"$f":"IF(E35=2,TRUE,FALSE)","v":false},""]
[null,null,null,null,null,{"$f":"IF(E35=3,TRUE,FALSE)","v":false},""]
[null,null,null,null,null,{"$f":"IF(E35=4,TRUE,FALSE)","v":false},""]
[null,null,null,null,null,{"$f":"IF(E35=5,TRUE,FALSE)","v":false},""]
[null,null,null,null,null,{"$f":"IF(E35=6,TRUE,FALSE)","v":false},""]
[null,"Actions pour atteindre une résilience maximale","Institution responsable ","Période",null,null,""]
[null,null,null,null,null,null,""]
[null,null,null,null,null,null,""]

{"sheet":"E09","index":11,"n_rows":56,"n_cols":9,"rows_kept":56,"cut":false,"hidden":false,"merged":[[19,2,19,3],[20,2,20,3],[4,1,4,3],[5,2,5,3],[6,2,6,3],[7,2,7,3],[17,1,17,3],[18,2,18,3],[8,2,13,3],[47,2,52,3],[34,2,39,3],[21,2,26,3],[30,1,30,3],[31,2,31,3],[32,2,32,3],[33,2,33,3],[43,1,43,3],[44,2,44,3],[45,2,45,3],[46,2,46,3]]}
[]
[]
[null,"A9 Intégration de la santé publique et de la réponse aux catastrophes (Point Essential 9)",null,null,null,null,"A9",null,"Intégration de la santé publique et de la réponse aux catastrophes (Point Essential 9)"]
[null,null,null,null,null,null,""]
[null,"A9.1 Systèmes d'alerte précoce pour les urgences liées à la santé",null,null,null,null,"A9.1",null,"Systèmes d'alerte précoce pour les urgences liées à la santé"]
[null,"Question","Commentaires",null,null,null,""]
[null,null,null,null,null,null,""]
[null,"Response","Fournir des moyens de vérification (explication et preuve)",null,null,null,""]
[null,null,null,null,null,{"$f":"IF(E9=1,TRUE,FALSE)","v":false},""]
[null,null,null,null,null,{"$f":"IF(E9=2,TRUE,FALSE)","v":false},""]
[null,null,null,null,null,{"$f":"IF(E9=3,TRUE,FALSE)","v":false},""]
[null,null,null,null,null,{"$f":"IF(E9=4,TRUE,FALSE)","v":false},""]
[null,null,null,null,null,{"$f":"IF(E9=5,TRUE,FALSE)","v":false},""]
[null,null,null,null,null,{"$f":"IF(E9=6,TRUE,FALSE)","v":false},""]
[null,"Actions pour atteindre une résilience maximale","Institution responsable ","Période",null,null,""]
[null,null,null,null,null,null,""]
[null,null,null,null,null,null,""]
[null,"A9.2 Intégration de la santé publique avec la gestion des urgences",null,null,null,null,"A9.2",null,"Intégration de la santé publique avec la gestion des urgences"]
[null,"Question","Commentaires",null,null,null,""]
[null,null,null,null,null,null,""]
[null,"Response","Fournir des moyens de vérification (explication et preuve)",null,null,null,""]
[null,null,null,null,null,{"$f":"IF(E22=1,TRUE,FALSE)","v":false},""]
[null,null,null,null,null,{"$f":"IF(E22=2,TRUE,FALSE)","v":false},""]
[null,null,null,null,null,{"$f":"IF(E22=3,TRUE,FALSE)","v":false},""]
[null,null,null,null,null,{"$f":"IF(E22=4,TRUE,FALSE)","v":false},""]
[null,null,null,null,null,{"$f":"IF(E22=5,TRUE,FALSE)","v":false},""]
[null,null,null,null,null,{"$f":"IF(E22=6,TRUE,FALSE)","v":false},""]
[null,"Actions pour atteindre une résilience maximale","Institution responsable ","Période",null,null,""]
[null,null,null,null,null,null,""]
[null,null,null,null,null,null,""]
[null,"A9.3 Prise en compte des populations à haut risque ou de celles vivant à domicile avec des conditions préexistantes",null,null,null,null,"A9.3",null,"Prise en compte des populations à haut risque ou de celles vivant à domicile avec des conditions préexistantes"]
[null,"Question","Commentaires",null,null,null,""]
[null,null,null,null,null,null,""]
[null,"Response","Fournir des moyens de vérification (explication et preuve)",null,null,null,""]
[null,null,null,null,null,{"$f":"IF(E35=1,TRUE,FALSE)","v":false},""]
[null,null,null,null,null,{"$f":"IF(E35=2,TRUE,FALSE)","v":false},""]
[null,null,null,null,null,{"$f":"IF(E35=3,TRUE,FALSE)","v":false},""]
[null,null,null,null,null,{"$f":"IF(E35=4,TRUE,FALSE)","v":false},""]
[null,null,null,null,null,{"$f":"IF(E35=5,TRUE,FALSE)","v":false},""]
[null,null,null,null,null,{"$f":"IF(E35=6,TRUE,FALSE)","v":false},""]
[null,"Actions pour atteindre une résilience maximale","Institution responsable ","Période",null,null,""]
[null,null,null,null,null,null,""]
[null,null,null,null,null,null,""]
[null,"A9.4 Capacité à fournir des fournitures de santé publique aux personnes dans le besoin. ",null,null,null,null,"A9.4",null,"Capacité à fournir des fournitures de santé publique aux personnes dans le besoin. "]
[null,"Question","Commentaires",null,null,null,""]
[null,null,null,null,null,null,""]
[null,"Response","Fournir des moyens de vérification (explication et preuve)",null,null,null,""]
[null,null,null,null,null,{"$f":"IF(E48=1,TRUE,FALSE)","v":false},""]
[null,null,null,null,null,{"$f":"IF(E48=2,TRUE,FALSE)","v":false},""]
[null,null,null,null,null,{"$f":"IF(E48=3,TRUE,FALSE)","v":false},""]
[null,null,null,null,null,{"$f":"IF(E48=4,TRUE,FALSE)","v":false},""]
[null,null,null,null,null,{"$f":"IF(E48=5,TRUE,FALSE)","v":false},""]
[null,null,null,null,null,{"$f":"IF(E48=6,TRUE,FALSE)","v":false},""]
[null,"Actions pour atteindre une résilience maximale","Institution responsable ","Période",null,null,""]
[null,null,null,null,null,null,""]
[null,null,null,null,null,null,""]

{"sheet":"E10","index":12,"n_rows":28,"n_cols":9,"rows_kept":28,"cut":false,"hidden":false,"merged":[[21,2,26,3],[8,2,13,3],[19,2,19,3],[20,2,20,3],[18,2,18,3],[4,1,4,3],[5,2,5,3],[6,2,6,3],[7,2,7,3],[17,1,17,3]]}
[]
[]
[null,"A10 Intégration de la santé publique et du redressement / de reconstruire en mieux (Point Essential 10)",null,null,null,null,"A10",null,"Intégration de la santé publique et du redressement / de reconstruire en mieux (Point Essential 10)"]
[]
[null,"A10.1 Atténuer les impacts à long terme sur la santé publique et le bien-être",null,null,null,null,"A10.1",null,"Atténuer les impacts à long terme sur la santé publique et le bien-être"]
[null,"Question","Commentaires"]
[]
[null,"Response","Fournir des moyens de vérification (explication et preuve)"]
[null,null,null,null,null,{"$f":"IF(E9=1,TRUE,FALSE)","v":false}]
[null,null,null,null,null,{"$f":"IF(E9=2,TRUE,FALSE)","v":false}]
[null,null,null,null,null,{"$f":"IF(E9=3,TRUE,FALSE)","v":false}]
[null,null,null,null,null,{"$f":"IF(E9=4,TRUE,FALSE)","v":false}]
[null,null,null,null,null,{"$f":"IF(E9=5,TRUE,FALSE)","v":false}]
[null,null,null,null,null,{"$f":"IF(E9=6,TRUE,FALSE)","v":false}]
[null,"Actions pour atteindre une résilience maximale","Institution responsable ","Période"]
[]
[]
[null,"A10.2 Apprendre et s'améliorer",null,null,null,null,"A10.2",null,"Apprendre et s'améliorer"]
[null,"Question","Commentaires"]
[]
[null,"Response","Fournir des moyens de vérification (explication et preuve)"]
[null,null,null,null,null,{"$f":"IF(E22=1,TRUE,FALSE)","v":false}]
[null,null,null,null,null,{"$f":"IF(E22=2,TRUE,FALSE)","v":false}]
[null,null,null,null,null,{"$f":"IF(E22=3,TRUE,FALSE)","v":false}]
[null,null,null,null,null,{"$f":"IF(E22=4,TRUE,FALSE)","v":false}]
[null,null,null,null,null,{"$f":"IF(E22=5,TRUE,FALSE)","v":false}]
[null,null,null,null,null,{"$f":"IF(E22=6,TRUE,FALSE)","v":false}]
[null,"Actions pour atteindre une résilience maximale","Institution responsable ","Période"]

{"sheet":"About","index":13,"n_rows":0,"n_cols":0,"rows_kept":0,"cut":false,"hidden":false,"merged":[]}